lending/lending_fUSD_20241228
["ID","MTS","AMOUNT","RATE_DAILY","PERIOD"]
[346904362,1735354243976,-500.0,0.00012398,2]
[346904364,1735354243986,-547.4,0.00012398,2]
[346904367,1735354243996,-500.0,0.00012398,2]
[346904369,1735354244006,-753.74,0.00012398,2]
[346904408,1735354244356,-500.0,0.00012398,2]
[346904410,1735354244367,-500.0,0.00012398,2]
[346904412,1735354244377,-500.0,0.00012398,2]
[346904414,1735354244387,-500.0,0.00012398,2]
[346904416,1735354244396,-587.53,0.00012398,2]
[346904417,1735354244405,-500.0,0.00012398,2]
[346904418,1735354244415,-500.0,0.00012398,2]
[346904419,1735354244424,-500.0,0.00012398,2]
[346904420,1735354244434,-673.62,0.00012398,2]
[346904421,1735354244444,-530.06,0.00012398,2]
[346904422,1735354244454,-500.0,0.00012398,2]
[346904423,1735354244464,-2889.45,0.00012398,2]
[346904424,1735354244475,-1743.8,0.00012398,2]
[346904425,1735354244483,-500.0,0.00012398,2]
[346904426,1735354244492,-500.0,0.00012398,2]
[346904427,1735354244501,-500.0,0.00012398,2]
[346904428,1735354244510,-500.0,0.00012398,2]
[346904429,1735354244520,-500.0,0.00012398,2]
[346904430,1735354244529,-500.0,0.00012398,2]
[346904431,1735354244539,-500.0,0.00012398,2]
[346904432,1735354244549,-500.0,0.00012398,2]
[346904433,1735354244558,-500.0,0.00012398,2]
[346904434,1735354244568,-231.58,0.000124,2]
[346904435,1735354244578,-5571.8226,0.00012416,2]
[346904436,1735354244588,-200.0,0.00012453,2]
[346904437,1735354244597,-500.0,0.00012456,2]
[346904438,1735354244606,-1699.51,0.00012456,2]
[346904439,1735354244618,-200.0,0.00012459,2]
[346904440,1735354244628,-2495.733,0.00012472,2]
[346904441,1735354244638,-217.78376142,0.00012472,2]
[346904442,1735354244648,-974.55269,0.0001251,2]
[346904443,1735354244657,-429.2501615,0.00012514,2]
[346904444,1735354244667,-500.0,0.00012515,2]
[346904445,1735354244676,-8539.17533967,0.0001252,2]
[346904446,1735354244686,-2000.0,0.00012539,2]
[346904447,1735354244695,-200.0,0.00012539,2]
[346904448,1735354244705,-1000.0,0.00012543,2]
[346904449,1735354244715,-500.0,0.00012578,2]
[346904450,1735354244725,-1853.301,0.00012579,2]
[346904451,1735354244735,-2011.75,0.000126,2]
[346904452,1735354244744,-206.54319269,0.000126,2]
[346904453,1735354244754,-206.54319253,0.000126,2]
[346904454,1735354244763,-206.54319253,0.000126,2]
[346904455,1735354244772,-206.54319253,0.000126,2]
[346904456,1735354244781,-206.54319253,0.000126,2]
[346904457,1735354244791,-206.54319253,0.000126,2]
[346904458,1735354244800,-206.54319253,0.000126,2]
[346904459,1735354244810,-206.54319253,0.000126,2]
[346904460,1735354244819,-188.68805865,0.000126,2]
[346904461,1735354245012,-17.85513388,0.000126,2]
[346904462,1735354245022,-206.54319253,0.000126,2]
[346904463,1735354245031,-206.54319253,0.000126,2]
[346904464,1735354245041,-70.05302132,0.000126,2]
[346904465,1735354245071,-434.89,0.00011277,2]
[346904466,1735354245080,-136.49017121,0.000126,2]
[346904467,1735354245090,-206.54319253,0.000126,2]
[346904468,1735354245099,-206.54319253,0.000126,2]
[346904469,1735354245109,-206.54319253,0.000126,2]
[346904470,1735354245118,-206.54319253,0.000126,2]
[346904471,1735354245127,-206.54319253,0.000126,2]
[346904472,1735354245136,-2963.14697771,0.00012625,2]
[346904473,1735354245146,-500.0,0.00012639,2]
[346904474,1735354245155,-500.0,0.00012639,2]
[346904475,1735354245164,-380.26,0.0001264,2]
[346904476,1735354245174,-2963.14697768,0.00012656,2]
[346904477,1735354245184,-164.91027724,0.00012667,2]
[346904478,1735354245193,-153.79483734,0.00012667,2]
[346904479,1735354245203,-500.0,0.0001267,2]
[346904480,1735354245212,-1230.48,0.0001267,2]
[346904481,1735354245222,-500.0,0.0001267,2]
[346904482,1735354245232,-500.0,0.0001267,2]
[346904483,1735354245242,-500.0,0.0001267,2]
[346904484,1735354245262,-502.61,0.0001267,2]
[346904485,1735354245272,-500.0,0.0001267,2]
[346904486,1735354245282,-500.0,0.0001267,2]
[346904487,1735354245291,-500.0,0.0001267,2]
[346904488,1735354245300,-2053.74,0.0001267,2]
[346904489,1735354245310,-500.0,0.0001267,2]
[346904490,1735354245321,-500.0,0.00012671,2]
[346904491,1735354245331,-500.0,0.00012671,2]
[346904492,1735354245340,-501.68,0.00012671,2]
[346904493,1735354245350,-500.0,0.00012671,2]
[346904494,1735354245359,-515.9,0.00012671,2]
[346904495,1735354245369,-500.0,0.00012671,2]
[346904496,1735354245378,-500.0,0.00012671,2]
[346904497,1735354245388,-1739.85,0.00012671,2]
[346904498,1735354245397,-500.0,0.00012671,2]
[346904499,1735354245407,-772.433725,0.00012671,2]
[346904500,1735354245417,-500.0,0.00012671,2]
[346904501,1735354245427,-753.922174,0.00012671,2]
[346904502,1735354245436,-874.68,0.00012671,2]
[346904503,1735354245446,-500.0,0.00012671,2]
[346904504,1735354245458,-500.0,0.00012671,2]
[346904505,1735354245468,-582.53,0.00012671,2]
[346904506,1735354245478,-1265.83,0.00012671,2]
[346904507,1735354245488,-500.0,0.00012671,2]
[346904508,1735354245497,-500.0,0.00012671,2]
[346904509,1735354245507,-500.0,0.00012671,2]
[346904510,1735354245516,-500.0,0.00012671,2]
[346904511,1735354245526,-500.0,0.00012671,2]
[346904512,1735354245535,-500.0,0.00012671,2]
[346904513,1735354245545,-500.0,0.00012671,2]
[346904514,1735354245554,-500.0,0.00012671,2]
[346904515,1735354245565,-500.0,0.00012671,2]
[346904516,1735354245575,-775.85,0.00012671,2]
[346904517,1735354245585,-500.0,0.00012672,2]
[346904518,1735354245595,-500.0,0.00012672,2]
[346904519,1735354245605,-500.0,0.00012672,2]
[346904520,1735354245617,-547.4,0.00012672,2]
[346904521,1735354245628,-500.0,0.00012672,2]
[346904522,1735354245639,-753.74,0.00012672,2]
[346904523,1735354245649,-500.0,0.00012672,2]
[346904524,1735354245659,-500.0,0.00012672,2]
[346904525,1735354245668,-500.0,0.00012672,2]
[346904526,1735354245679,-500.0,0.00012672,2]
[346904527,1735354245689,-587.53,0.00012672,2]
[346904528,1735354245700,-500.0,0.00012672,2]
[346904529,1735354245711,-500.0,0.00012672,2]
[346904530,1735354245720,-500.0,0.00012672,2]
[346904531,1735354245730,-673.62,0.00012672,2]
[346904532,1735354245739,-530.06,0.00012672,2]
[346904533,1735354245749,-500.0,0.00012672,2]
[346904534,1735354245759,-2889.45,0.00012672,2]
[346904535,1735354245770,-1743.8,0.00012672,2]
[346904536,1735354245780,-500.0,0.00012672,2]
[346904537,1735354245790,-500.0,0.00012672,2]
[346904538,1735354245799,-500.0,0.00012672,2]
[346904539,1735354245809,-500.0,0.00012672,2]
[346904540,1735354245819,-500.0,0.00012672,2]
[346904541,1735354245829,-268.69488554,0.00012672,2]
[346904542,1735354245839,-500.0,0.00012672,2]
[346904543,1735354245849,-500.0,0.00012672,2]
[346904544,1735354245858,-500.0,0.00012672,2]
[346904545,1735354245868,-218.99582122,0.00012678,2]
[346904546,1735354245877,-500.0,0.00012678,2]
[346904547,1735354245887,-500.0,0.00012678,2]
[346904548,1735354245897,-376.91181326,0.00012678,2]
[346904549,1735354245906,-649.49,0.00012678,2]
[346904550,1735354245916,-500.0,0.00012678,2]
[346904551,1735354245927,-646.16477305,0.00012678,2]
[346904552,1735354245936,-500.0,0.00012678,2]
[346904553,1735354245946,-500.0,0.00012678,2]
[346904554,1735354245955,-500.0,0.00012678,2]
[346904555,1735354245965,-1312.62,0.00012678,2]
[346904556,1735354245975,-500.0,0.00012678,2]
[346904557,1735354245984,-966.21,0.00012678,2]
[346904558,1735354245994,-500.0,0.00012678,2]
[346904559,1735354246003,-500.0,0.00012678,2]
[346904560,1735354246013,-500.0,0.00012678,2]
[346904561,1735354246022,-500.0,0.00012678,2]
[346904562,1735354246032,-500.0,0.00012678,2]
[346904563,1735354246041,-500.0,0.00012678,2]
[346904564,1735354246052,-2428.18,0.00012678,2]
[346904565,1735354246062,-500.0,0.00012678,2]
[346904566,1735354246072,-823.77,0.00012678,2]
[346904567,1735354246081,-500.0,0.00012678,2]
[346904568,1735354246091,-244345.99675147,0.00012679,2]
[346904569,1735354246101,-2963.14697768,0.00012686,2]
[346904570,1735354246110,-153.7948373,0.00012725,2]
[346904571,1735354246119,-500.0,0.0001273,2]
[346904572,1735354246128,-1699.51,0.0001273,2]
[346904573,1735354246138,-4004.07383264,0.0001275,2]
[346904574,1735354246147,-1977.99149783,0.00012764,2]
[346904575,1735354246368,-206.54319253,0.000126,2]
[346904576,1735354246379,-2248.40252418,0.00012764,2]
[346904577,1735354246389,-414.72027255,0.00012764,2]
[346904578,1735354246398,-2067.66443299,0.00012764,2]
[346904579,1735354246408,-634.03934229,0.00012765,2]
[346904580,1735354246416,-378.7635947,0.00012765,2]
[346904581,1735354246426,-10648.30870415,0.00012766,2]
[346904582,1735354246435,-1076.24939944,0.00012766,3]
[346904583,1735354246445,-500.0,0.00012766,2]
[346904584,1735354246455,-6408.16963189,0.00012766,2]
[346904585,1735354246467,-856.76910234,0.00012766,2]
[346904586,1735354246476,-24751.67644686,0.00012766,2]
[346904587,1735354246515,-378.78294716,0.00012766,2]
[346904588,1735354246526,-813.5,0.00012766,2]
[346904628,1735354572435,364.36161621,0.0002001,120]
[346904933,1735355101042,422.54,9.382e-05,2]
[346904997,1735355432502,-337.04,0.00010137,2]
[346904998,1735355432512,-374.32,0.00011033,2]
[346904999,1735355432522,-501.92160293,0.00011131,2]
[346905000,1735355432533,-546.17,0.0001114,2]
[346905001,1735355432542,-402.76,0.00011209,2]
[346905002,1735355432552,-431.42,0.00011415,2]
[346905003,1735355432562,-250.0,0.00011451,2]
[346905004,1735355432571,-375.09,0.00011635,2]
[346905005,1735355432580,-372.0,0.00011635,2]
[346905006,1735355432589,-371.16,0.00011635,2]
[346905007,1735355432599,-422.54,0.00011646,2]
[346905008,1735355432608,-250.0,0.00011691,2]
[346905009,1735355432618,-163.3,0.00011714,2]
[346905010,1735355432627,-1000.0,0.00011731,2]
[346905011,1735355432637,-150.0,0.00011863,2]
[346905012,1735355432646,-5000.0,0.000119,2]
[346905013,1735355432656,-155.85117105,0.000119,2]
[346905014,1735355432665,-965.99536448,0.000119,2]
[346905015,1735355432674,-10645.68123005,0.000119,2]
[346905016,1735355432684,-158.07736187,0.000119,2]
[346905017,1735355432693,-501.00270986,0.00011973,2]
[346905018,1735355432703,-502.91454723,0.00011973,2]
[346905019,1735355432713,-500.0,0.00011973,2]
[346905020,1735355432722,-500.84170204,0.00011973,2]
[346905021,1735355432732,-1968.16,0.00011999,2]
[346905022,1735355432742,-500.0,0.00011999,2]
[346905023,1735355432751,-500.0,0.00011999,2]
[346905024,1735355432761,-558.26,0.00011999,2]
[346905025,1735355432770,-1213.09,0.00011999,2]
[346905026,1735355432779,-500.0,0.00011999,2]
[346905027,1735355432789,-500.0,0.00011999,2]
[346905028,1735355432798,-500.0,0.00011999,2]
[346905029,1735355432808,-500.0,0.00011999,2]
[346905030,1735355432818,-1179.21,0.00011999,2]
[346905031,1735355432827,-500.0,0.00011999,2]
[346905032,1735355432837,-500.0,0.00011999,2]
[346905033,1735355432846,-500.0,0.00011999,2]
[346905034,1735355432855,-500.0,0.00011999,2]
[346905035,1735355432867,-500.0,0.00011999,2]
[346905036,1735355432876,-500.0,0.00011999,2]
[346905037,1735355432885,-500.0,0.00011999,2]
[346905038,1735355432894,-436.1667247,0.00011999,2]
[346905039,1735355432904,-500.0,0.00011999,2]
[346905041,1735355432913,-3632.46936712,0.00012,2]
[346905042,1735355432922,-38816.11382256,0.00012,2]
[346905045,1735355432933,-1189.367004,0.00012,2]
[346905047,1735355432944,-82071.73642622,0.00012,2]
[346905049,1735355432956,-5025.0,0.00012,2]
[346905051,1735355432966,-450.653,0.00012,2]
[346905053,1735355432978,-11762.57128165,0.00012,2]
[346905055,1735355432989,-6723.20293524,0.00012,2]
[346905589,1735355438602,-722.130003,0.00011999,2]
[346905591,1735355438612,-290.811,0.00011999,2]
[346905593,1735355438625,-873.218997,0.00011999,2]
[346905595,1735355438634,-743.52,0.00011999,2]
[346905597,1735355438643,-49378.44691161,0.00012,2]
[346905599,1735355438654,-184209.11167842,0.00012,2]
[346905601,1735355438665,-9985.0,0.00012,2]
[346905603,1735355438676,-304.57,0.00012,2]
[346905606,1735355438688,-634.13419042,0.00012,2]
[346905608,1735355438699,-1539.6778539,0.00012,2]
[346905610,1735355438710,-266.80394107,0.00012,2]
[346905612,1735355438721,-451.15504761,0.00012,2]
[346905614,1735355438732,-977.9891559,0.00012,2]
[346905616,1735355438742,-3578.09946263,0.00012,2]
[346905657,1735355439126,-25277.60581456,0.00012,2]
[346905659,1735355439137,-1336.06591152,0.00012,2]
[346905661,1735355439148,-24201.41011954,0.00012,2]
[346905663,1735355439159,-9263.33702543,0.00012,2]
[346905665,1735355439174,-820.29910292,0.00012,2]
[346905786,1735355440421,-583417.28162144,0.00012,2]
[346905788,1735355440430,-2429510.36621097,0.00012,4]
[346905790,1735355440442,-1469.6911387,0.00012,4]
[346905813,1735355440648,-307.71169007,0.00012,4]
[346905815,1735355440659,-6315.3454475,0.00012,4]
[346905817,1735355440671,-3591.86537889,0.00012,4]
[346905819,1735355440682,-5589.9701285,0.00012,4]
[346905822,1735355440694,-821.37766856,0.00012,4]
[346905824,1735355440705,-1095.6062822,0.00012,4]
[346905826,1735355440716,-3999.64712997,0.00012,4]
[346905828,1735355440730,-227815.58929628,0.00012,4]
[346905837,1735355440840,-372.80077324,0.00012,4]
[346906089,1735355443497,-375.27,0.00011999,2]
[346906091,1735355443508,-500.0,0.00011999,2]
[346906093,1735355443517,-472.87685781,0.00012,4]
[346906096,1735355443528,-6584.17930504,0.00012,4]
[346906116,1735355443717,-16268.07293523,0.00012,4]
[346906119,1735355443729,-36258.88051778,0.00012,4]
[346906121,1735355443739,-1507.90766624,0.00012,4]
[346906325,1735355446383,-500.0,0.00011999,2]
[346906326,1735355446393,-356.20926424,0.00012,4]
[346906327,1735355446404,-546.006,0.00012,4]
[346906328,1735355446415,-40696.12942058,0.00012,4]
[346906329,1735355446426,-1755.71814556,0.00012,4]
[346906330,1735355446437,-912.34615092,0.00012,4]
[346906331,1735355446449,-6700.0,0.00012,4]
[346906332,1735355446461,-34249.2830118,0.00012,4]
[346906333,1735355446569,-719.95798759,0.00012,4]
[346906334,1735355446580,-340.762495,0.00012,4]
[346906335,1735355446592,-362.02612854,0.00012,4]
[346906336,1735355446603,-937.69234994,0.00012,4]
[346906337,1735355948715,416.94,9.227e-05,2]
[346906338,1735355998996,150.56079268,0.0002001,120]
[346906388,1735356631635,-189.64,0.00010137,2]
[346906389,1735356631647,-196.47,0.00010834,2]
[346906390,1735356631657,-294.03,0.00011021,2]
[346906391,1735356631666,-374.89,0.00011022,2]
[346906392,1735356631677,-252.66444415,0.00011023,2]
[346906393,1735356631689,-119.31555585,0.00011023,2]
[346906394,1735356631699,-381.2,0.00011024,2]
[346906395,1735356631709,-380.07,0.00011026,2]
[346906396,1735356631718,-374.19,0.00011029,2]
[346906397,1735356631728,-374.98,0.00011035,2]
[346906398,1735356631738,-375.71527734,0.00011045,2]
[346906399,1735356631751,-1.92472266,0.00011045,2]
[346906400,1735356631760,-275.07527684,0.00011064,2]
[346906401,1735356631777,-99.50472316,0.00011064,2]
[346906402,1735356631788,-378.62,0.00011097,2]
[346906403,1735356631799,-372.78,0.00011156,2]
[346906404,1735356631809,-255.29719068,0.00011281,2]
[346906405,1735356631819,-818.92808616,0.00011288,2]
[346906406,1735356631832,-10320.41462004,0.00011288,2]
[346906407,1735356631857,-1400.6298579,0.00011288,2]
[346906408,1735356631867,-250.0,0.00011315,2]
[346906409,1735356631879,-372.45,0.00011315,2]
[346906410,1735356631889,-372.61,0.00011315,2]
[346906411,1735356631898,-369.22,0.00011315,2]
[346906412,1735356631907,-369.87,0.00011315,2]
[346906413,1735356631916,-373.68,0.00011315,2]
[346906414,1735356631926,-381.99,0.00011315,2]
[346906415,1735356631935,-380.92,0.00011316,2]
[346906416,1735356631945,-371.04,0.00011317,2]
[346906417,1735356631955,-374.55,0.00011318,2]
[346906418,1735356631964,-368.07,0.0001132,2]
[346906419,1735356631974,-369.14,0.00011324,2]
[346906420,1735356631983,-379.98,0.00011331,2]
[346906421,1735356631992,-378.04,0.00011342,2]
[346906422,1735356632001,-2000.0,0.00011345,2]
[346906423,1735356632011,-151.0,0.00011381,2]
[346906424,1735356632020,-416.94,0.00011491,2]
[346906425,1735356632030,-150.0,0.000115,2]
[346906426,1735356632039,-373.54,0.00011584,2]
[346906427,1735356632048,-379.34,0.00011584,2]
[346906428,1735356632058,-20.42698967,0.00011584,2]
[346906528,1735356637509,-357.73301033,0.00011584,2]
[346906529,1735356637518,-374.06,0.00011584,2]
[346906530,1735356637527,-370.22,0.00011584,2]
[346906531,1735356637536,-372.12,0.00011584,2]
[346906532,1735356637546,-382.15,0.00011584,2]
[346906533,1735356637555,-373.19,0.00011584,2]
[346906534,1735356637564,-379.31,0.00011584,2]
[346906535,1735356637573,-382.0,0.00011584,2]
[346906536,1735356637583,-372.71,0.00011584,2]
[346906537,1735356637592,-378.05,0.00011585,2]
[346906538,1735356637601,-367.86,0.00011585,2]
[346906539,1735356637614,-379.14,0.00011585,2]
[346906540,1735356637623,-369.57,0.00011585,2]
[346906541,1735356637632,-373.7,0.00011585,2]
[346906542,1735356637641,-382.07,0.00011585,2]
[346906543,1735356637651,-375.64,0.00011585,2]
[346906544,1735356637660,-380.18,0.00011585,2]
[346906545,1735356637669,-368.86,0.00011585,2]
[346906546,1735356637679,-1000.0,0.00011585,2]
[346906547,1735356637689,-322.95,0.000116,2]
[346906548,1735356637699,-150.0,0.000116,2]
[346906549,1735356637708,-150.0,0.000116,2]
[346906550,1735356637718,-150.0,0.000116,2]
[346906551,1735356637727,-429.2501615,0.00011694,2]
[346906552,1735356637737,-21120.39087608,0.0001188,2]
[346906553,1735356637746,-1000.0,0.00011999,2]
[346906554,1735356637756,-500.0,0.00011999,2]
[346906555,1735356637765,-1257.93,0.00011999,2]
[346906556,1735356637775,-500.0,0.00011999,2]
[346906557,1735356637784,-500.0,0.00011999,2]
[346906558,1735356637793,-887.37,0.00011999,2]
[346906559,1735356637803,-500.0,0.00011999,2]
[346906560,1735356637812,-2230.04,0.00011999,2]
[346906561,1735356637821,-500.0,0.00011999,2]
[346906562,1735356637831,-500.0,0.00011999,2]
[346906563,1735356637841,-500.0,0.00011999,2]
[346906564,1735356637850,-500.0,0.00011999,2]
[346906565,1735356637860,-501.78,0.00011999,2]
[346906566,1735356637869,-500.0,0.00011999,2]
[346906567,1735356637880,-9071.62595209,0.00012,4]
[346906568,1735356637892,-960.0,0.00012,4]
[346906569,1735356637903,-3574.0,0.00012,4]
[346906570,1735356637915,-18292.05466676,0.00012,4]
[346906571,1735356637924,-15058.93697239,0.00012,2]
[346906572,1735356637935,-419.275395,0.00012,2]
[346906573,1735356637952,-312.31536098,0.00012,2]
[346906575,1735356637963,-8.51227163,0.00012,2]
[346906577,1735356637973,-3135.33015184,0.00012,2]
[346906580,1735356637992,-974.80061012,0.00012,2]
[346906582,1735356638003,-3789.44023804,0.00012,2]
[346906584,1735356638012,-812.12724,0.00012,2]
[346906585,1735356638021,-1910.017,0.00012125,2]
[346906587,1735356638030,-1197.177,0.00012125,2]
[346906589,1735356638040,-1263.659,0.00012125,2]
[346906591,1735356638050,-1271.786,0.00012125,2]
[346906593,1735356638058,-150.0,0.00012125,2]
[346906595,1735356638068,-2023.051,0.00012125,2]
[346906596,1735356638077,-636.0,0.00012125,2]
[346906598,1735356638086,-508.399,0.0001213,2]
[346906600,1735356638095,-500.0,0.00012186,2]
[346906602,1735356638106,-196.47,0.00012188,2]
[346906604,1735356638115,-977.37,0.00012192,2]
[346906606,1735356638125,-436.61,0.00012192,2]
[346906608,1735356638135,-150.0,0.00012192,2]
[346906610,1735356638144,-436.61,0.00012192,2]
[346906611,1735356638153,-436.34,0.00012192,2]
[346906613,1735356638162,-515.9182485,0.00012217,2]
[346906615,1735356638171,-509.07916589,0.00012217,2]
[346906617,1735356638181,-161.46126046,0.00012217,2]
[346906619,1735356638190,-500.0,0.00012217,2]
[346906621,1735356638199,-275.82501132,0.00012217,2]
[346906623,1735356638208,-500.82049059,0.0001222,2]
[346906624,1735356638218,-227.16338713,0.0001222,2]
[346906626,1735356638227,-160.37690849,0.0001222,2]
[346906628,1735356638237,-160.37766543,0.0001222,2]
[346906630,1735356638246,-500.0,0.0001222,2]
[346906632,1735356638255,-559.0116325,0.00012273,2]
[346906634,1735356638265,-1257.93,0.00012273,2]
[346906636,1735356638274,-500.0,0.00012273,2]
[346906638,1735356638283,-500.0,0.00012273,2]
[346906640,1735356638292,-887.37,0.00012273,2]
[346906641,1735356638302,-500.0,0.00012273,2]
[346906643,1735356638314,-201.64855667,0.00012273,2]
[346906645,1735356638324,-500.0,0.00012273,2]
[346906647,1735356638334,-358.91719322,0.00012273,2]
[346906649,1735356638343,-501.78,0.00012273,2]
[346906651,1735356638352,-500.0,0.00012273,2]
[346906653,1735356638361,-370.61,0.00012365,2]
[346906655,1735356638370,-208.42,0.000124,2]
[346906656,1735356638380,-7540.45361912,0.0001248,2]
[346906658,1735356638390,-7540.45361908,0.00012527,2]
[346906660,1735356638399,-1257.93,0.00012547,2]
[346906662,1735356638408,-500.0,0.00012547,2]
[346906664,1735356638417,-257.98728598,0.00012547,2]
[346906666,1735356638426,-925.95,0.00012547,2]
[346906668,1735356638435,-887.37,0.00012547,2]
[346906670,1735356638446,-500.0,0.00012547,2]
[346906672,1735356638455,-501.78,0.00012547,2]
[346906674,1735356638464,-500.0,0.00012547,2]
[346906676,1735356638473,-2516.205,0.00012552,2]
[346906677,1735356638483,-7540.45361908,0.00012573,2]
[346906679,1735356638492,-500.0,0.0001258,2]
[346906701,1735356638697,-514.74288731,0.0001258,2]
[346906702,1735356638707,-515.59360216,0.0001258,2]
[346906703,1735356638716,-376.85495657,0.0001258,2]
[346906704,1735356638726,-516.63702626,0.0001258,2]
[346906705,1735356638736,-511.22711984,0.0001258,2]
[346906706,1735356638746,-521.79991984,0.0001258,2]
[346906707,1735356638755,-508.38017879,0.0001258,2]
[346906708,1735356638764,-320.49833034,0.0001258,2]
[346906709,1735356638774,-313.19175425,0.0001258,2]
[346906710,1735356638783,-500.0,0.0001258,2]
[346906711,1735356638792,-500.0,0.0001258,2]
[346906712,1735356638801,-1667.35,0.0001258,2]
[346906713,1735356638811,-500.0,0.0001258,2]
[346906715,1735356638820,-772.433725,0.0001258,2]
[346906717,1735356638829,-500.0,0.0001258,2]
[346906719,1735356638839,-753.922174,0.0001258,2]
[346906721,1735356638848,-262.88686926,0.0001258,2]
[346906723,1735356638858,-500.0,0.0001258,2]
[346906725,1735356638867,-622.43,0.0001258,2]
[346906727,1735356638876,-838.23,0.0001258,2]
[346906729,1735356638885,-500.0,0.0001258,2]
[346906731,1735356638894,-500.0,0.0001258,2]
[346906733,1735356638903,-500.0,0.0001258,2]
[346906735,1735356638912,-500.0,0.0001258,2]
[346906737,1735356638921,-500.0,0.0001258,2]
[346906739,1735356638931,-500.0,0.0001258,2]
[346906741,1735356638940,-500.0,0.0001258,2]
[346906742,1735356638949,-535.0,0.0001258,2]
[346906745,1735356638958,-500.0,0.0001258,2]
[346906746,1735356638967,-500.0,0.0001258,2]
[346906748,1735356638977,-500.0,0.0001258,2]
[346906750,1735356638986,-500.0,0.0001258,2]
[346906751,1735356638995,-1557.88,0.0001258,2]
[346906752,1735356639004,-500.0,0.0001258,2]
[346906753,1735356639013,-576.94472526,0.0001258,2]
[346906754,1735356639022,-500.0,0.0001258,2]
[346906755,1735356639031,-500.0,0.0001258,2]
[346906756,1735356639040,-500.0,0.0001258,2]
[346906757,1735356639050,-712.54,0.0001258,2]
[346906758,1735356639059,-500.0,0.0001258,2]
[346906759,1735356639069,-1130.08,0.0001258,2]
[346906760,1735356639078,-500.0,0.0001258,2]
[346906761,1735356639088,-500.0,0.0001258,2]
[346906762,1735356639097,-500.0,0.0001258,2]
[346906763,1735356639107,-500.0,0.0001258,2]
[346906764,1735356639117,-500.0,0.0001258,2]
[346906765,1735356639126,-789.44,0.0001258,2]
[346906766,1735356639135,-500.0,0.0001258,2]
[346906767,1735356639145,-500.0,0.0001258,2]
[346906768,1735356639154,-500.0,0.0001258,2]
[346906769,1735356639164,-500.0,0.0001258,2]
[346906770,1735356639173,-500.0,0.0001258,2]
[346906771,1735356639182,-500.0,0.0001258,2]
[346906772,1735356639191,-500.0,0.0001258,2]
[346906773,1735356639201,-1807.57,0.0001258,2]
[346906774,1735356639210,-500.0,0.0001258,2]
[346906775,1735356639220,-500.0,0.0001258,2]
[346906776,1735356639229,-500.0,0.0001258,2]
[346906777,1735356639238,-500.0,0.0001258,2]
[346906778,1735356639248,-500.0,0.0001258,2]
[346906779,1735356639258,-90187.98254163,0.00012581,2]
[346906780,1735356639267,-8897.02,0.000126,2]
[346906781,1735356639276,-206.54319253,0.000126,2]
[346906782,1735356639285,-9163.95578748,0.00012608,2]
[346906783,1735356639295,-7199.37908189,0.00012613,2]
[346906784,1735356639304,-7540.45361908,0.0001262,2]
[346906785,1735356639313,-7199.37908186,0.00012645,2]
[346906786,1735356639323,-4017.2038,0.00012662,2]
[346906787,1735356639331,-2000.0,0.00012664,2]
[346906788,1735356639341,-200.0,0.00012664,2]
[346906789,1735356639350,-7540.45361908,0.00012667,2]